[Event "GrandPrix_29.05"]
[Site "Chess.com"]
[Date "2020.05.29"]
[Round "1"]
[White "esskeettit"]
[Black "Bulldog167"]
[Result "1/2-1/2"]
[WhiteElo "2215"]
[BlackElo "2508"]
[TimeControl "600+2"]
[EndTime "9:24:44 PDT"]
[Termination "Game drawn by repetition"]

1. d4 {[%clk 0:10:01.7]} 1... Nf6 {[%clk 0:09:55.7]} 2. c4 {[%clk 0:10:02.1]}
2... e6 {[%clk 0:09:56.6]} 3. Nc3 {[%clk 0:09:59.2]} 3... d5 {[%clk 0:09:56.4]}
4. cxd5 {[%clk 0:09:57.4]} 4... Nxd5 {[%clk 0:09:54.2]} 5. e4 {[%clk 0:09:57.8]}
5... Nxc3 {[%clk 0:09:55.2]} 6. bxc3 {[%clk 0:09:59.7]} 6... c5 {[%clk 0:09:56]}
7. Nf3 {[%clk 0:10:00.9]} 7... cxd4 {[%clk 0:09:57.4]} 8. cxd4 {[%clk
0:10:02.5]} 8... Bb4+ {[%clk 0:09:58.2]} 9. Bd2 {[%clk 0:09:54.9]} 9... Bxd2+
{[%clk 0:09:58.3]} 10. Qxd2 {[%clk 0:09:56.8]} 10... O-O {[%clk 0:09:58.2]} 11.
Be2 {[%clk 0:09:44]} 11... b6 {[%clk 0:09:45.8]} 12. O-O {[%clk 0:09:24.2]}
12... Bb7 {[%clk 0:09:45]} 13. Qe3 {[%clk 0:09:23.5]} 13... Nc6 {[%clk
0:09:25.3]} 14. Rfd1 {[%clk 0:09:12.4]} 14... Qe7 {[%clk 0:08:16.8]} 15. Rac1
{[%clk 0:08:34.6]} 15... Rac8 {[%clk 0:08:15.7]} 16. h3 {[%clk 0:07:43.4]} 16...
Rfd8 {[%clk 0:08:03.3]} 17. Bd3 {[%clk 0:07:03.8]} 17... h6 {[%clk 0:07:27]} 18.
Bb1 {[%clk 0:07:02.4]} 18... Qd6 {[%clk 0:04:52.5]} 19. Rd2 {[%clk 0:04:47.4]}
19... Na5 {[%clk 0:04:38]} 20. Rdc2 {[%clk 0:04:43.9]} 20... Rxc2 {[%clk
0:04:32.3]} 21. Rxc2 {[%clk 0:04:45.8]} 21... Qb4 {[%clk 0:04:10.8]} 22. Qc1
{[%clk 0:04:12.9]} 22... Nc6 {[%clk 0:03:45.5]} 23. Rc4 {[%clk 0:04:13.2]} 23...
Qd6 {[%clk 0:03:39]} 24. Qc2 {[%clk 0:03:36.7]} 24... e5 {[%clk 0:02:45.6]} 25.
d5 {[%clk 0:02:42]} 25... Ne7 {[%clk 0:02:46.6]} 26. Rc7 {[%clk 0:02:07.9]}
26... Rc8 {[%clk 0:02:41.7]} 27. Rxc8+ {[%clk 0:02:08.9]} 27... Bxc8 {[%clk
0:02:28.6]} 28. Qa4 {[%clk 0:01:52.5]} 28... Ng6 {[%clk 0:00:28.3]} 29. Qxa7
{[%clk 0:01:01.3]} 29... Qb4 {[%clk 0:00:28.4]} 30. Bd3 {[%clk 0:00:30.4]} 30...
Qc3 {[%clk 0:00:18.8]} 31. Bf1 {[%clk 0:00:22.8]} 31... Bxh3 {[%clk 0:00:11.7]}
32. Qxb6 {[%clk 0:00:18.3]} 32... Bg4 {[%clk 0:00:08.8]} 33. Qb3 {[%clk
0:00:11.6]} 33... Qc1 {[%clk 0:00:10.1]} 34. Nxe5 {[%clk 0:00:09.4]} 34... Be2
{[%clk 0:00:04.8]} 35. Qb8+ {[%clk 0:00:06.1]} 35... Kh7 {[%clk 0:00:05.8]} 36.
Nxg6 {[%clk 0:00:04.7]} 36... Qxf1+ {[%clk 0:00:07.1]} 37. Kh2 {[%clk 0:00:06]}
37... fxg6 {[%clk 0:00:08.5]} 38. d6 {[%clk 0:00:07.5]} 38... Bg4 {[%clk
0:00:05.2]} 39. Qc7 {[%clk 0:00:08.2]} 39... Qxf2 {[%clk 0:00:03.9]} 40. d7
{[%clk 0:00:07.4]} 40... Qh4+ {[%clk 0:00:05]} 41. Kg1 {[%clk 0:00:08.5]} 41...
Qe1+ {[%clk 0:00:06.3]} 42. Kh2 {[%clk 0:00:09.9]} 42... Qh4+ {[%clk 0:00:06.1]}
43. Kg1 {[%clk 0:00:11.3]} 43... Bxd7 {[%clk 0:00:06.9]} 44. Qxd7 {[%clk
0:00:12.3]} 44... Qxe4 {[%clk 0:00:07.9]} 45. a4 {[%clk 0:00:10.5]} 45... h5
{[%clk 0:00:09.5]} 46. Qb5 {[%clk 0:00:08.5]} 46... Qe1+ {[%clk 0:00:08.7]} 47.
Kh2 {[%clk 0:00:09.5]} 47... Qh4+ {[%clk 0:00:08.2]} 48. Kg1 {[%clk 0:00:10.2]}
48... Qd4+ {[%clk 0:00:09.8]} 49. Kh1 {[%clk 0:00:09.6]} 49... h4 {[%clk
0:00:08.9]} 50. a5 {[%clk 0:00:10.5]} 50... Qd1+ {[%clk 0:00:09.2]} 51. Kh2
{[%clk 0:00:11.7]} 51... Qd6+ {[%clk 0:00:10.4]} 52. Kh1 {[%clk 0:00:12.2]}
52... Qd1+ {[%clk 0:00:11.5]} 53. Kh2 {[%clk 0:00:13.5]} 53... Qd6+ {[%clk
0:00:07.3]} 54. Kh1 {[%clk 0:00:14.7]} 54... Qd1+ {[%clk 0:00:05.2]} 1/2-1/2

[Event "GrandPrix_29.05"]
[Site "Chess.com"]
[Date "2020.05.29"]
[Round "1"]
[White "Zakaryan_David"]
[Black "Spartakus1975"]
[Result "0-1"]
[WhiteElo "1174"]
[BlackElo "2212"]
[TimeControl "600+2"]
[EndTime "9:24:44 PDT"]
[Termination "Spartakus1975 won by resignation"]

1. e4 {[%clk 0:09:59.6]} 1... e6 {[%clk 0:09:43.8]} 2. d4 {[%clk 0:09:59.3]}
2... d5 {[%clk 0:09:41]} 3. Nd2 {[%clk 0:10:00.5]} 3... c5 {[%clk 0:09:36.9]} 4.
exd5 {[%clk 0:10:00.9]} 4... exd5 {[%clk 0:09:36.2]} 5. Ngf3 {[%clk 0:10:00.9]}
5... Nc6 {[%clk 0:09:36]} 6. Bb5 {[%clk 0:10:01.9]} 6... cxd4 {[%clk 0:09:35.9]}
7. Nxd4 {[%clk 0:08:56.5]} 7... Bd7 {[%clk 0:09:29]} 8. N2f3 {[%clk 0:08:34.5]}
8... Bd6 {[%clk 0:09:16.4]} 9. O-O {[%clk 0:08:32.3]} 9... Nge7 {[%clk
0:09:15.6]} 10. Bg5 {[%clk 0:08:31.6]} 10... O-O {[%clk 0:09:13]} 11. Re1 {[%clk
0:08:26.7]} 11... Re8 {[%clk 0:08:41]} 12. c3 {[%clk 0:08:01.6]} 12... Qc7
{[%clk 0:07:29.8]} 13. Bd3 {[%clk 0:07:20.1]} 13... Nxd4 {[%clk 0:07:07.2]} 14.
cxd4 {[%clk 0:07:16.8]} 14... Ng6 {[%clk 0:06:18.6]} 15. h3 {[%clk 0:06:03.1]}
15... Qb6 {[%clk 0:05:12.4]} 16. Rxe8+ {[%clk 0:04:59.5]} 16... Rxe8 {[%clk
0:05:10]} 17. Qb3 {[%clk 0:04:59.4]} 17... Qxb3 {[%clk 0:05:02.8]} 18. axb3
{[%clk 0:05:01.3]} 18... a6 {[%clk 0:05:04.1]} 19. Kf1 {[%clk 0:04:47.9]} 19...
Nf4 {[%clk 0:04:53.1]} 20. Bxf4 {[%clk 0:04:29]} 20... Bxf4 {[%clk 0:04:53.2]}
21. Ra5 {[%clk 0:03:53]} 21... Bc6 {[%clk 0:04:31.9]} 22. Rc5 {[%clk 0:03:42.6]}
22... Bd6 {[%clk 0:03:58.6]} 23. Rc2 {[%clk 0:03:39]} 23... Bd7 {[%clk
0:03:45.8]} 24. Ne5 {[%clk 0:03:24.9]} 24... Be6 {[%clk 0:03:44.3]} 25. Ng4
{[%clk 0:02:33.2]} 25... Kf8 {[%clk 0:03:23.1]} 26. Ne3 {[%clk 0:02:32.7]} 26...
g6 {[%clk 0:03:16]} 27. Be2 {[%clk 0:02:31.8]} 27... Bb8 {[%clk 0:03:03.9]} 28.
Bf3 {[%clk 0:02:28.5]} 28... Rd8 {[%clk 0:02:38.6]} 29. Nxd5 {[%clk 0:02:16]}
29... Bxd5 {[%clk 0:02:38.8]} 30. Bxd5 {[%clk 0:02:16.5]} 30... Rxd5 {[%clk
0:02:40.3]} 31. Rc8+ {[%clk 0:02:17.2]} 31... Ke7 {[%clk 0:02:41.8]} 32. Rxb8
{[%clk 0:02:18.5]} 32... Rb5 {[%clk 0:02:43.3]} 33. Rc8 {[%clk 0:02:12.5]} 33...
Rxb3 {[%clk 0:02:41.7]} 34. Rc2 {[%clk 0:02:08.2]} 34... Kd6 {[%clk 0:02:41.5]}
35. Ke2 {[%clk 0:01:53.7]} 35... Kd5 {[%clk 0:02:40.8]} 36. Kd2 {[%clk
0:01:54.5]} 36... Kxd4 {[%clk 0:02:37.1]} 37. Kc1 {[%clk 0:01:55.4]} 37... Ke5
{[%clk 0:02:28.7]} 38. Rc7 {[%clk 0:01:55.1]} 38... Ke6 {[%clk 0:02:28.9]} 39.
Kc2 {[%clk 0:01:51]} 39... Rb6 {[%clk 0:02:29.6]} 40. Kb1 {[%clk 0:01:52.1]}
40... h5 {[%clk 0:02:28.3]} 41. h4 {[%clk 0:01:52.2]} 41... f6 {[%clk
0:02:25.7]} 42. g3 {[%clk 0:01:49.3]} 42... Rb4 {[%clk 0:02:17.4]} 43. Ka2
{[%clk 0:01:42.1]} 43... Kf5 {[%clk 0:02:14.2]} 44. Ka3 {[%clk 0:01:39.3]} 44...
Rb5 {[%clk 0:02:09]} 45. Rf7 {[%clk 0:01:23.2]} 45... Rb6 {[%clk 0:01:59.6]} 46.
b4 {[%clk 0:01:19.1]} 46... Kg4 {[%clk 0:01:54]} 47. Rg7 {[%clk 0:00:42.2]}
47... f5 {[%clk 0:01:51.5]} 48. Rc7 {[%clk 0:00:32.6]} 48... Kf3 {[%clk
0:01:50.8]} 49. Rc2 {[%clk 0:00:33.9]} 49... Re6 {[%clk 0:01:50]} 50. Ka4 {[%clk
0:00:32.6]} 50... Re2 {[%clk 0:01:27.1]} 51. Rc7 {[%clk 0:00:32.4]} 51... b5+
{[%clk 0:01:19.4]} 52. Ka5 {[%clk 0:00:33.2]} 52... Ra2+ {[%clk 0:01:19.1]} 53.
Kb6 {[%clk 0:00:34.6]} 53... Kxf2 {[%clk 0:01:19]} 54. Rc3 {[%clk 0:00:34.3]}
54... Rb2 {[%clk 0:01:12.1]} 55. Kc5 {[%clk 0:00:33.6]} 55... Kg2 {[%clk
0:01:10.3]} 56. Ra3 {[%clk 0:00:33.6]} 56... Rc2+ {[%clk 0:01:06.1]} 57. Kd5
{[%clk 0:00:33.5]} 57... Rc4 {[%clk 0:01:06.1]} 58. Rxa6 {[%clk 0:00:32.3]}
58... Kxg3 {[%clk 0:00:56]} 59. Rxg6+ {[%clk 0:00:29.9]} 59... Kxh4 {[%clk
0:00:54.7]} 60. Rg1 {[%clk 0:00:23.7]} 60... Rxb4 {[%clk 0:00:47.7]} 61. Ke5
{[%clk 0:00:24.7]} 61... Rg4 {[%clk 0:00:38.1]} 62. Rh1+ {[%clk 0:00:25.1]}
62... Kg5 {[%clk 0:00:38]} 0-1

[Event "GrandPrix_29.05"]
[Site "Chess.com"]
[Date "2020.05.29"]
[Round "1"]
[White "Robert_Chessmood"]
[Black "Warerman"]
[Result "1/2-1/2"]
[WhiteElo "1958"]
[BlackElo "2192"]
[TimeControl "600+2"]
[EndTime "9:24:46 PDT"]
[Termination "Game drawn by repetition"]

1. e4 {[%clk 0:10:01.9]} 1... c5 {[%clk 0:09:57.4]} 2. Nf3 {[%clk 0:10:02.1]}
2... Nc6 {[%clk 0:09:55.2]} 3. Nc3 {[%clk 0:10:00.2]} 3... e5 {[%clk 0:09:43.8]}
4. Bc4 {[%clk 0:09:58.8]} 4... d6 {[%clk 0:09:44.5]} 5. d3 {[%clk 0:09:59.4]}
5... Be7 {[%clk 0:09:45.7]} 6. Nd5 {[%clk 0:09:59.4]} 6... Nf6 {[%clk
0:09:38.6]} 7. c3 {[%clk 0:10:00.2]} 7... O-O {[%clk 0:09:35.9]} 8. a3 {[%clk
0:09:58.3]} 8... Be6 {[%clk 0:09:09.3]} 9. b4 {[%clk 0:09:25.2]} 9... a6 {[%clk
0:08:16.7]} 10. Nxf6+ {[%clk 0:07:07.3]} 10... Bxf6 {[%clk 0:08:16.8]} 11. Bxe6
{[%clk 0:07:08.6]} 11... fxe6 {[%clk 0:08:18.7]} 12. Be3 {[%clk 0:06:58.5]}
12... b6 {[%clk 0:08:11.1]} 13. O-O {[%clk 0:06:53.2]} 13... Qe7 {[%clk
0:06:51.7]} 14. bxc5 {[%clk 0:06:00.8]} 14... bxc5 {[%clk 0:06:51.8]} 15. Rb1
{[%clk 0:05:53.3]} 15... Qc7 {[%clk 0:06:29.7]} 16. Qb3 {[%clk 0:05:46]} 16...
Rfe8 {[%clk 0:06:10.1]} 17. Qb6 {[%clk 0:05:20.5]} 17... Bd8 {[%clk 0:05:45.8]}
18. Qxc7 {[%clk 0:04:28.1]} 18... Bxc7 {[%clk 0:05:45.5]} 19. Rfc1 {[%clk
0:04:12.2]} 19... Rab8 {[%clk 0:05:36.1]} 20. Kf1 {[%clk 0:04:07.6]} 20... h6
{[%clk 0:05:24.7]} 21. Ke2 {[%clk 0:04:01.9]} 21... Rxb1 {[%clk 0:04:33.6]} 22.
Rxb1 {[%clk 0:04:02.4]} 22... Rb8 {[%clk 0:04:35.5]} 23. Rxb8+ {[%clk
0:03:54.3]} 23... Bxb8 {[%clk 0:04:37.4]} 24. Kd1 {[%clk 0:03:42.2]} 24... Kf7
{[%clk 0:04:08.4]} 25. Kc2 {[%clk 0:03:43]} 25... Bc7 {[%clk 0:03:59.5]} 26. g4
{[%clk 0:03:19.4]} 26... Ke8 {[%clk 0:02:29]} 27. h4 {[%clk 0:03:17.8]} 27...
Bd8 {[%clk 0:02:22.6]} 28. h5 {[%clk 0:03:07.8]} 28... Kd7 {[%clk 0:02:23.6]}
29. Bd2 {[%clk 0:02:52.3]} 29... Be7 {[%clk 0:02:23.4]} 30. Kb3 {[%clk
0:02:45.5]} 30... Bd8 {[%clk 0:02:00.5]} 31. Ng1 {[%clk 0:02:19.6]} 31... d5
{[%clk 0:01:38.3]} 32. f3 {[%clk 0:02:06.1]} 32... c4+ {[%clk 0:01:24.9]} 33.
Kc2 {[%clk 0:01:53.3]} 33... cxd3+ {[%clk 0:01:08.3]} 34. Kxd3 {[%clk
0:01:53.9]} 34... Na5 {[%clk 0:01:10.2]} 35. Ne2 {[%clk 0:01:42.2]} 35... Nc4
{[%clk 0:01:09.2]} 36. Bc1 {[%clk 0:01:43.4]} 36... Be7 {[%clk 0:01:07.1]} 37.
a4 {[%clk 0:01:44.6]} 37... Kc6 {[%clk 0:00:49.8]} 38. Ng3 {[%clk 0:01:34.4]}
38... Nb6 {[%clk 0:00:31.3]} 39. exd5+ {[%clk 0:01:06.5]} 39... Kxd5 {[%clk
0:00:30.9]} 40. Ne4 {[%clk 0:00:35.3]} 40... Nxa4 {[%clk 0:00:31.2]} 41. c4+
{[%clk 0:00:36.5]} 41... Kc6 {[%clk 0:00:31.5]} 42. Kc2 {[%clk 0:00:20.6]} 42...
Nc5 {[%clk 0:00:25.4]} 43. Ba3 {[%clk 0:00:19.8]} 43... Bf8 {[%clk 0:00:16]} 44.
Bxc5 {[%clk 0:00:17.3]} 44... Bxc5 {[%clk 0:00:17.9]} 45. g5 {[%clk 0:00:18.7]}
45... Be3 {[%clk 0:00:15.9]} 46. g6 {[%clk 0:00:18.4]} 46... a5 {[%clk
0:00:15.1]} 47. Kb3 {[%clk 0:00:19.7]} 47... Kb6 {[%clk 0:00:13.1]} 48. Ka4
{[%clk 0:00:19.1]} 48... Bd4 {[%clk 0:00:10.1]} 49. Ka3 {[%clk 0:00:16.2]} 49...
Kc6 {[%clk 0:00:10.4]} 50. Kb3 {[%clk 0:00:17]} 50... Kb6 {[%clk 0:00:11.6]} 51.
Nd6 {[%clk 0:00:11]} 51... Kc6 {[%clk 0:00:09.9]} 52. Ne4 {[%clk 0:00:08.2]}
52... Kb6 {[%clk 0:00:10.1]} 53. Ka2 {[%clk 0:00:09.3]} 53... Kc6 {[%clk
0:00:11.2]} 54. Kb1 {[%clk 0:00:09.3]} 54... Kb6 {[%clk 0:00:12.3]} 55. Kc2
{[%clk 0:00:10.3]} 55... Kc6 {[%clk 0:00:13.8]} 56. Kb3 {[%clk 0:00:08.2]}
1/2-1/2

[Event "GrandPrix_29.05"]
[Site "Chess.com"]
[Date "2020.05.29"]
[Round "1"]
[White "Gareth-Bale11"]
[Black "klippfiskkjerringa"]
[Result "1/2-1/2"]
[WhiteElo "2279"]
[BlackElo "2121"]
[TimeControl "600+2"]
[EndTime "9:24:48 PDT"]
[Termination "Game drawn - insufficient material"]

1. d4 {[%clk 0:09:58]} 1... Nf6 {[%clk 0:09:52.8]} 2. c4 {[%clk 0:09:57.7]} 2...
c5 {[%clk 0:09:53.6]} 3. d5 {[%clk 0:09:55.7]} 3... b5 {[%clk 0:09:54.7]} 4.
cxb5 {[%clk 0:09:54.8]} 4... a6 {[%clk 0:09:55.7]} 5. bxa6 {[%clk 0:09:55.7]}
5... g6 {[%clk 0:09:57.2]} 6. Nc3 {[%clk 0:09:54]} 6... Bg7 {[%clk 0:09:58.3]}
7. Nf3 {[%clk 0:09:41.8]} 7... O-O {[%clk 0:09:58.2]} 8. e4 {[%clk 0:09:35.9]}
8... Qa5 {[%clk 0:09:55.3]} 9. Nd2 {[%clk 0:08:16]} 9... Bxa6 {[%clk 0:09:50.9]}
10. Be2 {[%clk 0:08:10]} 10... d6 {[%clk 0:08:04.8]} 11. O-O {[%clk 0:07:57.4]}
11... Nfd7 {[%clk 0:08:00]} 12. Bxa6 {[%clk 0:07:44.2]} 12... Nxa6 {[%clk
0:07:48.1]} 13. Nc4 {[%clk 0:07:14.3]} 13... Qb4 {[%clk 0:07:39]} 14. Qd3 {[%clk
0:06:53.6]} 14... Nb6 {[%clk 0:07:14.6]} 15. Nxb6 {[%clk 0:06:45.8]} 15... Qxb6
{[%clk 0:07:16.5]} 16. Rb1 {[%clk 0:05:51.5]} 16... Qb4 {[%clk 0:07:18.4]} 17.
Bd2 {[%clk 0:05:41.3]} 17... Qb6 {[%clk 0:07:20.3]} 18. Na4 {[%clk 0:04:35.4]}
18... Qb7 {[%clk 0:07:11.6]} 19. a3 {[%clk 0:04:31.3]} 19... Rfb8 {[%clk
0:05:50.4]} 20. b4 {[%clk 0:04:20.9]} 20... Qd7 {[%clk 0:05:40.6]} 21. b5 {[%clk
0:02:55.5]} 21... Nc7 {[%clk 0:05:39.8]} 22. b6 {[%clk 0:02:54.9]} 22... Rxa4
{[%clk 0:05:13.3]} 23. bxc7 {[%clk 0:02:55]} 23... Qxc7 {[%clk 0:05:10.8]} 24.
Rxb8+ {[%clk 0:02:51.8]} 24... Qxb8 {[%clk 0:05:11.9]} 25. Rb1 {[%clk
0:02:52.8]} 25... Qa8 {[%clk 0:04:36.2]} 26. Bc1 {[%clk 0:02:33.5]} 26... c4
{[%clk 0:04:22.7]} 27. Qc2 {[%clk 0:02:31.7]} 27... h5 {[%clk 0:04:11.2]} 28. h4
{[%clk 0:02:28.4]} 28... Bd4 {[%clk 0:03:42.9]} 29. g3 {[%clk 0:01:42.9]} 29...
Kh7 {[%clk 0:03:23.7]} 30. Kg2 {[%clk 0:01:34.1]} 30... Bg7 {[%clk 0:03:19.6]}
31. Bg5 {[%clk 0:01:24.6]} 31... f6 {[%clk 0:02:45.4]} 32. Be3 {[%clk
0:01:21.6]} 32... c3 {[%clk 0:02:09.1]} 33. Rb4 {[%clk 0:00:57.8]} 33... Rxa3
{[%clk 0:01:44.6]} 34. Bd4 {[%clk 0:00:58.7]} 34... f5 {[%clk 0:01:39.6]} 35.
Bxg7 {[%clk 0:00:44.6]} 35... Kxg7 {[%clk 0:01:40]} 36. Rc4 {[%clk 0:00:46.1]}
36... Kh7 {[%clk 0:01:27.2]} 37. Rc7 {[%clk 0:00:41.7]} 37... Qd8 {[%clk
0:01:23.3]} 38. Rxc3 {[%clk 0:00:41.1]} 38... Rxc3 {[%clk 0:01:23.6]} 39. Qxc3
{[%clk 0:00:43]} 39... fxe4 {[%clk 0:01:25.3]} 40. Qd4 {[%clk 0:00:42.4]} 40...
Qf8 {[%clk 0:01:19.3]} 41. Qxe4 {[%clk 0:00:43.3]} 41... Qf6 {[%clk 0:01:20.3]}
42. f3 {[%clk 0:00:44.3]} 42... Kg7 {[%clk 0:01:20.4]} 43. Kh3 {[%clk
0:00:43.2]} 43... Kf7 {[%clk 0:01:20.9]} 44. g4 {[%clk 0:00:42.3]} 44... hxg4+
{[%clk 0:01:20.3]} 45. Kxg4 {[%clk 0:00:39.9]} 45... e5 {[%clk 0:00:44.7]} 46.
dxe6+ {[%clk 0:00:37.1]} 46... Qxe6+ {[%clk 0:00:45.5]} 47. Kf4 {[%clk
0:00:28.9]} 47... d5 {[%clk 0:00:39]} 48. Qb4 {[%clk 0:00:20.5]} 48... Qf5+
{[%clk 0:00:32.2]} 49. Ke3 {[%clk 0:00:21.6]} 49... Qe5+ {[%clk 0:00:33]} 50.
Kd3 {[%clk 0:00:22.9]} 50... Ke6 {[%clk 0:00:31.1]} 51. Qb6+ {[%clk 0:00:23.1]}
51... Kf5 {[%clk 0:00:31.5]} 52. Qb7 {[%clk 0:00:19.4]} 52... Kf4 {[%clk
0:00:28.1]} 53. Qf7+ {[%clk 0:00:19.9]} 53... Qf5+ {[%clk 0:00:29.2]} 54. Qxf5+
{[%clk 0:00:21]} 54... Kxf5 {[%clk 0:00:30.2]} 55. Kd4 {[%clk 0:00:21.9]} 55...
Kf4 {[%clk 0:00:18.9]} 56. Kxd5 {[%clk 0:00:22.7]} 56... Kxf3 {[%clk 0:00:19.7]}
57. Ke5 {[%clk 0:00:23.7]} 57... Kg4 {[%clk 0:00:20.5]} 58. Kf6 {[%clk 0:00:25]}
58... Kh5 {[%clk 0:00:21.4]} 59. Kg7 {[%clk 0:00:25.2]} 59... Kxh4 {[%clk
0:00:10.3]} 60. Kxg6 {[%clk 0:00:26.1]} 1/2-1/2

[Event "GrandPrix_29.05"]
[Site "Chess.com"]
[Date "2020.05.29"]
[Round "1"]
[White "GadimbayliA"]
[Black "kayrakamer"]
[Result "1-0"]
[WhiteElo "2531"]
[BlackElo "2122"]
[TimeControl "600+2"]
[EndTime "9:24:53 PDT"]
[Termination "GadimbayliA won by resignation"]

1. e4 {[%clk 0:10:00.5]} 1... c5 {[%clk 0:10:00.6]} 2. Nf3 {[%clk 0:10:01.5]}
2... e6 {[%clk 0:10:01.1]} 3. d4 {[%clk 0:10:02.6]} 3... cxd4 {[%clk 0:10:03]}
4. Nxd4 {[%clk 0:10:04.4]} 4... a6 {[%clk 0:10:04.3]} 5. Bd3 {[%clk 0:10:05.2]}
5... Bc5 {[%clk 0:10:05]} 6. Nb3 {[%clk 0:10:06]} 6... Be7 {[%clk 0:10:06.3]} 7.
Qg4 {[%clk 0:10:07]} 7... g6 {[%clk 0:10:07.7]} 8. Qe2 {[%clk 0:10:08.3]} 8...
d6 {[%clk 0:10:08.9]} 9. O-O {[%clk 0:10:07.8]} 9... Nd7 {[%clk 0:10:09.8]} 10.
Na3 {[%clk 0:10:06.6]} 10... b6 {[%clk 0:10:07.4]} 11. Nc4 {[%clk 0:10:07.1]}
11... Bb7 {[%clk 0:10:08.8]} 12. a4 {[%clk 0:10:08.2]} 12... Ngf6 {[%clk
0:10:09.4]} 13. Bh6 {[%clk 0:09:59.1]} 13... d5 {[%clk 0:10:09.9]} 14. exd5
{[%clk 0:09:57.9]} 14... Nxd5 {[%clk 0:10:11.8]} 15. Rad1 {[%clk 0:09:37.7]}
15... Qc7 {[%clk 0:10:09.2]} 16. a5 {[%clk 0:09:15.5]} 16... b5 {[%clk
0:10:08.4]} 17. Nb6 {[%clk 0:09:16.7]} 17... N7xb6 {[%clk 0:09:51.7]} 18. axb6
{[%clk 0:09:18.6]} 18... Qxb6 {[%clk 0:09:51.4]} 19. c4 {[%clk 0:08:29.5]} 19...
bxc4 {[%clk 0:09:08.3]} 20. Bxc4 {[%clk 0:08:31.4]} 20... Rd8 {[%clk 0:09:08.2]}
21. Rfe1 {[%clk 0:08:00.6]} 21... Bf8 {[%clk 0:08:31.8]} 22. Qe5 {[%clk
0:05:44.7]} 22... Rg8 {[%clk 0:07:59.3]} 23. Bg5 {[%clk 0:03:53.4]} 23... Be7
{[%clk 0:07:12.8]} 24. Bxd5 {[%clk 0:03:28.7]} 24... Rxd5 {[%clk 0:05:51.5]} 25.
Rxd5 {[%clk 0:03:10.8]} 25... Bxd5 {[%clk 0:05:42.5]} 26. Bxe7 {[%clk
0:03:11.1]} 26... Bxb3 {[%clk 0:05:07.9]} 27. Ba3 {[%clk 0:02:37.1]} 27... Kd7
{[%clk 0:04:05.2]} 28. Qf6 {[%clk 0:02:35.7]} 28... Kc8 {[%clk 0:03:50]} 29.
Rc1+ {[%clk 0:01:31.1]} 29... Kb8 {[%clk 0:03:49.1]} 30. Bc5 {[%clk 0:01:29.1]}
30... Rc8 {[%clk 0:02:21.4]} 31. Qc3 {[%clk 0:01:08]} 31... Rxc5 {[%clk
0:01:47.9]} 32. Qxc5 {[%clk 0:01:09.9]} 32... Qxc5 {[%clk 0:01:49.4]} 33. Rxc5
{[%clk 0:01:11.5]} 33... Kb7 {[%clk 0:01:51.1]} 34. f3 {[%clk 0:01:09.1]} 34...
Bd5 {[%clk 0:01:47.2]} 35. Kf2 {[%clk 0:01:09.8]} 35... Kb6 {[%clk 0:01:40.9]}
36. Rc8 {[%clk 0:01:08.8]} 36... Kb5 {[%clk 0:01:42.1]} 37. Ke3 {[%clk
0:01:06.2]} 37... Kb4 {[%clk 0:01:35.6]} 38. Kd4 {[%clk 0:00:48.5]} 38... a5
{[%clk 0:00:59.7]} 39. Rb8+ {[%clk 0:00:47.1]} 39... Ka4 {[%clk 0:00:59.3]} 40.
Ke5 {[%clk 0:00:38.6]} 40... f5 {[%clk 0:00:53.8]} 41. Kd4 {[%clk 0:00:36.1]}
41... g5 {[%clk 0:00:47.5]} 42. Rb6 {[%clk 0:00:35.7]} 42... h5 {[%clk
0:00:41.8]} 43. Kc3 {[%clk 0:00:36.3]} 43... g4 {[%clk 0:00:22]} 44. b3+ {[%clk
0:00:31.9]} 44... Ka3 {[%clk 0:00:22]} 45. Ra6 {[%clk 0:00:33]} 45... Ka2 {[%clk
0:00:16.3]} 46. Rxa5+ {[%clk 0:00:33.9]} 46... Kb1 {[%clk 0:00:15]} 47. Rxd5
{[%clk 0:00:21.6]} 47... exd5 {[%clk 0:00:16.3]} 48. b4 {[%clk 0:00:23.1]} 48...
h4 {[%clk 0:00:17.9]} 49. h3 {[%clk 0:00:24.1]} 49... Kc1 {[%clk 0:00:16.7]} 50.
b5 {[%clk 0:00:24.5]} 50... Kd1 {[%clk 0:00:17]} 51. b6 {[%clk 0:00:21.5]} 51...
Ke2 {[%clk 0:00:14.4]} 52. fxg4 {[%clk 0:00:22.4]} 52... Ke3 {[%clk 0:00:09.5]}
53. b7 {[%clk 0:00:21.6]} 53... d4+ {[%clk 0:00:11.4]} 54. Kc2 {[%clk
0:00:21.2]} 54... Ke2 {[%clk 0:00:02]} 55. b8=Q {[%clk 0:00:22.3]} 55... d3+
{[%clk 0:00:03.9]} 56. Kc3 {[%clk 0:00:23.7]} 56... d2 {[%clk 0:00:05.2]} 57.
Qe5+ {[%clk 0:00:25.2]} 57... Kf1 {[%clk 0:00:05.6]} 58. Qxf5+ {[%clk
0:00:25.3]} 1-0